bitfinex/quotes_BTCUSD_20260117
["timestamp","ask_amount","ask_price","bid_price","bid_amount"]
[1768617224374,0.01050409,95201.0,95198.0,0.01050442]
[1768617225368,0.01050387,95203.0,95199.0,0.01050431]
[1768617225603,0.01050387,95203.0,95198.0,0.01050442]
[1768617226020,0.01050387,95203.0,95199.0,0.01050431]
[1768617226224,0.06302331,95203.0,95197.0,0.05252251]
[1768617226427,0.01050409,95201.0,95196.0,0.01050464]
[1768617226649,0.01050409,95201.0,95196.0,0.06302768]
[1768617226856,0.01015121,95201.0,95197.0,0.01050453]
[1768617227881,0.0105042,95200.0,95196.0,0.01050464]
[1768617228278,0.01050431,95199.0,95195.0,0.01050475]
[1768617228746,0.01015121,95201.0,95196.0,0.01050464]
[1768617228901,0.0105042,95200.0,95196.0,0.01050464]
[1768617229724,0.01050431,95199.0,95195.0,0.01050475]
[1768617229935,0.01050431,95199.0,95194.0,0.06302903]
[1768617230135,0.01050431,95199.0,95195.0,0.05252369]
[1768617230471,0.01050431,95199.0,95195.0,0.01050475]
[1768617230696,0.0105042,95200.0,95196.0,0.01050464]
[1768617231310,0.0105042,95200.0,95197.0,0.01050453]
[1768617231896,0.01015121,95201.0,95197.0,0.01050453]
[1768617232879,0.0105042,95200.0,95196.0,0.01050464]
[1768617233992,0.01041331,95200.0,95196.0,0.01050464]
[1768617235787,0.01050431,95199.0,95195.0,0.01050475]
[1768617236866,0.01050442,95198.0,95195.0,0.01050475]
[1768617237072,0.01050431,95199.0,95195.0,0.01050475]
[1768617237296,0.01050442,95198.0,95194.0,0.01050486]
[1768617237509,0.01050453,95197.0,95194.0,0.09211675]
[1768617237981,0.06302732,95197.0,95194.0,0.09211675]
[1768617238183,0.06302761,95197.0,95194.0,0.09211675]
[1768617238386,0.01050453,95197.0,95194.0,0.09211675]
[1768617238792,0.06302733,95197.0,95194.0,0.09211675]
[1768617239489,0.01050453,95197.0,95194.0,0.09211675]
[1768617240784,0.01050442,95198.0,95194.0,0.09211675]
[1768617242058,0.01050431,95199.0,95195.0,0.01050475]
[1768617242261,0.01050431,95199.0,95195.0,0.06302848]
[1768617242471,0.01050431,95199.0,95195.0,0.01050475]
[1768617242674,0.01050442,95198.0,95194.0,0.01050486]
[1768617243138,0.06302662,95198.0,95194.0,0.01050486]
[1768617243347,0.01050442,95198.0,95194.0,0.01050486]
[1768617243940,0.06302731,95197.0,95193.0,0.01050497]
[1768617244082,0.06302724,95197.0,95193.0,0.01050497]
[1768617244313,0.01050464,95196.0,95193.0,0.01050497]
[1768617245253,0.01050453,95197.0,95193.0,0.01050497]
[1768617246042,0.01050464,95196.0,95192.0,0.01050508]
[1768617247094,0.01050475,95195.0,95191.0,0.09211675]
[1768617247496,0.01050475,95195.0,95191.0,0.10262194]
[1768617248013,0.01050464,95196.0,95192.0,0.01050508]
[1768617249189,0.01050464,95206.0,95195.0,0.01050475]
[1768617249391,0.01050453,95197.0,95193.0,0.10262172]
[1768617250206,0.06302625,95199.0,95194.0,0.01050486]
[1768617250400,0.01050442,95198.0,95194.0,0.01050486]
[1768617251233,0.01050431,95199.0,95195.0,0.01050475]
[1768617251436,0.01050442,95198.0,95195.0,0.01050475]
[1768617251847,0.01050453,95197.0,95193.0,0.09211675]
[1768617253089,0.01050464,95196.0,95193.0,0.09211675]
[1768617254084,0.01050464,95196.0,95192.0,0.01050508]
[1768617255323,0.01050453,95197.0,95193.0,0.01050497]
[1768617255836,0.01050453,95197.0,95192.0,0.06303045]
[1768617255837,0.01050464,95196.0,95192.0,0.06303041]
[1768617256048,0.01050453,95197.0,95193.0,0.01050497]
[1768617256467,0.01050453,95197.0,95194.0,0.01050486]
[1768617257132,0.01050464,95196.0,95192.0,0.01050508]
[1768617257586,0.01050475,95195.0,95191.0,0.01050519]
[1768617258453,0.01050442,95198.0,95193.0,0.06302956]
[1768617258669,0.01050442,95198.0,95193.0,0.01050497]
[1768617258888,0.01050453,95197.0,95193.0,0.01050497]
[1768617259744,0.01050442,95198.0,95194.0,0.01050486]
[1768617260334,0.01036524,95198.0,95194.0,0.01050486]
[1768617261086,0.01026019,95198.0,95194.0,0.01050486]
[1768617263226,0.01026019,95198.0,95193.0,0.01050497]
[1768617263471,0.01050453,95197.0,95193.0,0.01050497]
[1768617263672,0.01050453,95197.0,95192.0,0.01050508]
[1768617263673,0.01050464,95196.0,95192.0,0.01050508]
[1768617263882,0.01050475,95195.0,95191.0,0.01050519]
[1768617266600,0.01050486,95194.0,95190.0,0.0105053]
[1768617266953,0.01050497,95193.0,95189.0,0.01050541]
[1768617267939,0.01050475,95195.0,95192.0,0.01050508]
[1768617268147,0.01050464,95196.0,95192.0,0.01050508]
[1768617268380,0.01050464,95196.0,95191.0,0.01050519]
[1768617268381,0.01050475,95195.0,95191.0,0.01050519]
[1768617268848,0.01050464,95196.0,95192.0,0.01050508]
[1768617270085,0.01050464,95196.0,95192.0,0.06303046]
[1768617270293,0.01050453,95197.0,95193.0,0.01050497]
[1768617272166,0.01050464,95196.0,95193.0,0.01050497]
[1768617272781,0.01050453,95197.0,95193.0,0.01050497]
[1768617273551,0.01050464,95196.0,95192.0,0.01050508]
[1768617275718,0.01050464,95196.0,95193.0,0.01050497]
[1768617276312,0.01050453,95197.0,95193.0,0.01050497]
[1768617279989,0.01050464,95196.0,95192.0,0.01050508]
[1768617280196,0.06302859,95195.0,95191.0,0.01050519]
[1768617280390,0.01050475,95195.0,95191.0,0.01050519]
[1768617282068,0.01050453,95197.0,95192.0,0.01050508]
[1768617282306,0.01041363,95197.0,95193.0,0.06302981]
[1768617282538,0.01032273,95197.0,95193.0,0.01050497]
[1768617282761,0.01050464,95196.0,95192.0,0.01050508]
[1768617282984,0.01041373,95196.0,95192.0,0.01050508]
[1768617283477,0.06293698,95196.0,95192.0,0.01050508]
[1768617284671,0.01041373,95196.0,95192.0,0.01050508]
[1768617289595,0.01032282,95196.0,95192.0,0.01050508]
[1768617289805,0.01050475,95195.0,95191.0,0.01050519]
[1768617290018,0.01041384,95195.0,95191.0,0.06303111]
[1768617290220,0.01041384,95195.0,95191.0,0.01050519]
[1768617291682,0.06293763,95195.0,95191.0,0.01050519]
[1768617291887,0.01041384,95195.0,95191.0,0.01050519]
[1768617294369,0.01050486,95194.0,95191.0,0.01050519]
[1768617296344,0.01032282,95196.0,95191.0,0.01050519]
[1768617296546,0.01050475,95195.0,95191.0,0.01050519]
[1768617296944,0.01041384,95195.0,95191.0,0.01050519]
[1768617297818,0.01032282,95196.0,95191.0,0.06303116]
[1768617298030,0.01050475,95195.0,95191.0,0.01050519]
[1768617298844,0.01050475,95195.0,95191.0,0.06303112]
[1768617299062,0.01050475,95195.0,95191.0,0.01050519]
[1768617299268,0.01032282,95196.0,95192.0,0.01050508]
[1768617300601,0.01032282,95196.0,95192.0,0.06303049]
[1768617300810,0.01032282,95196.0,95191.0,0.01050519]
[1768617301045,0.01050486,95194.0,95190.0,0.0105053]
[1768617301253,0.00815589,95194.0,95190.0,0.0105053]
[1768617301683,0.00696572,95194.0,95191.0,0.01050519]
[1768617301897,0.06302984,95193.0,95189.0,0.01050541]
[1768617302108,0.01050475,95195.0,95191.0,0.01050519]
[1768617303368,0.01050486,95194.0,95191.0,0.01050519]
[1768617305321,0.01050475,95195.0,95191.0,0.01050519]
[1768617306926,0.01032273,95197.0,95191.0,0.01050519]
[1768617307129,0.01050464,95196.0,95191.0,0.01050519]
[1768617307375,0.06302802,95196.0,95191.0,0.01050519]
[1768617307578,0.01050464,95196.0,95191.0,0.01050519]
[1768617307758,0.01050464,95196.0,95192.0,0.01050508]
[1768617308402,0.01050475,95195.0,95191.0,0.01050519]
[1768617308607,0.01050464,95196.0,95192.0,0.01050508]
[1768617308846,0.01050475,95195.0,95191.0,0.01050519]
[1768617309979,0.01050464,95196.0,95192.0,0.01050508]
[1768617310432,0.01032273,95197.0,95193.0,0.01050497]
[1768617311139,0.01050431,95199.0,95194.0,0.01050486]
[1768617311343,0.0105042,95200.0,95194.0,0.01050486]
[1768617311711,0.01050431,95199.0,95195.0,0.01050475]
[1768617311875,0.01041338,95199.0,95195.0,0.01050475]
[1768617312079,0.01041338,95199.0,95194.0,0.01050486]
[1768617312282,0.01041338,95199.0,95195.0,0.01050475]
[1768617312688,0.01050442,95198.0,95195.0,0.01050475]
[1768617312886,0.01050442,95198.0,95194.0,0.01050486]
[1768617313350,0.01041348,95198.0,95194.0,0.01050486]
[1768617314654,0.01041327,95200.0,95194.0,0.01050486]
[1768617314655,0.01041327,95200.0,95195.0,0.01050475]
[1768617314815,0.01050431,95199.0,95195.0,0.01050475]
[1768617315554,0.01050431,95199.0,95196.0,0.01050464]
[1768617316272,0.01041327,95200.0,95197.0,0.01050453]
[1768617317315,0.01050442,95198.0,95194.0,0.01050486]
[1768617317479,0.01050442,95198.0,95194.0,0.06302917]
[1768617318640,0.01050431,95199.0,95195.0,0.01050475]
[1768617318852,0.01041327,95200.0,95196.0,0.01050464]
[1768617319055,0.01050431,95199.0,95195.0,0.01050475]
[1768617320007,0.01050442,95198.0,95194.0,0.01050486]
[1768617320589,0.01050442,95198.0,95193.0,0.01050497]
[1768617320763,0.01050442,95198.0,95194.0,0.01050486]
[1768617321848,0.01050431,95199.0,95195.0,0.01050475]
[1768617322603,0.01050442,95198.0,95195.0,0.01050475]
[1768617323015,0.00986642,95198.0,95195.0,0.01050475]
[1768617323215,0.00986642,95198.0,95194.0,0.01050486]
[1768617323834,0.01050431,95199.0,95195.0,0.01050475]
[1768617324891,0.01050442,95198.0,95194.0,0.01050486]
[1768617325095,0.01050442,95198.0,95193.0,0.0630297]
[1768617325096,0.01050453,95197.0,95193.0,0.01050497]
[1768617326439,0.01050442,95198.0,95194.0,0.01050486]
[1768617326561,0.06302656,95198.0,95194.0,0.01050486]
[1768617326762,0.06302654,95198.0,95194.0,0.01050486]
[1768617326960,0.01050453,95197.0,95193.0,0.01050497]
[1768617327164,0.01050453,95197.0,95193.0,0.06302974]
[1768617327569,0.01050453,95197.0,95193.0,0.01050497]
[1768617331003,0.01050442,95198.0,95194.0,0.01050486]
[1768617331212,0.01050453,95197.0,95194.0,0.01050486]
[1768617331656,0.01050453,95197.0,95193.0,0.01050497]
[1768617335246,0.01050464,95196.0,95192.0,0.01050508]
[1768617335792,0.0104137,95196.0,95192.0,0.01050508]
[1768617336478,0.01050453,95197.0,95193.0,0.01050497]
[1768617337727,0.01050442,95198.0,95194.0,0.01050486]
[1768617338526,0.01050453,95197.0,95194.0,0.01050486]
[1768617338773,0.01050453,95197.0,95193.0,0.01050497]
[1768617341900,0.06302695,95198.0,95193.0,0.01050497]
[1768617342505,0.01050442,95198.0,95193.0,0.01050497]
[1768617342922,0.01050442,95198.0,95194.0,0.01050486]
[1768617343596,0.01050442,95198.0,95192.0,0.06303008]
[1768617343797,0.01050442,95198.0,95193.0,0.01050497]
[1768617344309,0.01050453,95197.0,95193.0,0.01050497]
[1768617344831,0.01050442,95198.0,95194.0,0.01050486]
[1768617345270,0.01050453,95197.0,95193.0,0.01050497]
[1768617346046,0.01050442,95198.0,95194.0,0.01050486]
[1768617346290,0.01050453,95197.0,95193.0,0.01050497]
[1768617346493,0.01050442,95198.0,95194.0,0.01050486]
[1768617347099,0.01050453,95197.0,95193.0,0.01050497]
[1768617348235,0.01050453,95197.0,95194.0,0.01050486]
[1768617348513,0.01050453,95197.0,95193.0,0.01050497]
[1768617350482,0.01050442,95198.0,95193.0,0.06302983]
[1768617350682,0.01050464,95196.0,95193.0,0.01050497]
[1768617351747,0.06302666,95198.0,95193.0,0.01050497]
[1768617351952,0.01050453,95197.0,95193.0,0.01050497]
[1768617352181,0.01050464,95196.0,95192.0,0.01050508]
[1768617352385,0.01050442,95198.0,95194.0,0.01050486]
[1768617354159,0.0630266,95198.0,95194.0,0.01050486]
[1768617354347,0.01050453,95197.0,95193.0,0.01050497]
[1768617355345,0.01050442,95198.0,95194.0,0.01050486]
[1768617357010,0.01050431,95199.0,95195.0,0.01050475]
[1768617357404,0.01050442,95198.0,95195.0,0.01050475]
[1768617358609,0.01050431,95199.0,95195.0,0.01050475]
[1768617360571,0.01050442,95198.0,95194.0,0.01050486]
[1768617360704,0.01050442,95198.0,95195.0,0.01050475]
[1768617361077,0.01050431,95199.0,95195.0,0.01050475]
[1768617361280,0.01050442,95198.0,95195.0,0.01050475]
[1768617361484,0.01050442,95198.0,95194.0,0.01050486]
[1768617361902,0.01050453,95197.0,95193.0,0.01050497]
[1768617362643,0.01050442,95198.0,95194.0,0.01050486]
[1768617363210,0.01050453,95197.0,95194.0,0.01050486]
[1768617363345,0.01050442,95198.0,95194.0,0.01050486]
[1768617363755,0.06302658,95198.0,95194.0,0.01050486]
[1768617363958,0.01050453,95197.0,95194.0,0.01050486]
[1768617364417,0.01050442,95198.0,95194.0,0.01050486]
[1768617364945,0.01050453,95197.0,95193.0,0.01050497]
[1768617366168,0.01050453,95197.0,95193.0,0.06302981]
[1768617366326,0.01050453,95197.0,95193.0,0.01050497]
[1768617368268,0.01050453,95197.0,95194.0,0.01050486]
[1768617370528,0.01050442,95198.0,95194.0,0.01050486]
[1768617370736,0.01050453,95197.0,95193.0,0.01050497]
[1768617372282,0.01050442,95198.0,95194.0,0.01050486]
[1768617373626,0.01050453,95197.0,95194.0,0.01050486]
[1768617373827,0.01050453,95197.0,95193.0,0.01050497]
[1768617374304,0.01050464,95196.0,95192.0,0.01050508]
[1768617374510,0.01050453,95197.0,95193.0,0.01050497]
[1768617374689,0.06302724,95197.0,95193.0,0.01050497]
[1768617374898,0.01050453,95197.0,95193.0,0.01050497]
[1768617375071,0.01050453,95197.0,95193.0,0.0630298]
[1768617375273,0.01050442,95198.0,95194.0,0.01050486]
[1768617375473,0.01050453,95197.0,95193.0,0.01050497]
[1768617376690,0.01050442,95198.0,95194.0,0.01050486]
[1768617377321,0.01050453,95197.0,95193.0,0.01050497]
[1768617377564,0.01050464,95196.0,95192.0,0.01050508]
[1768617377748,0.01050453,95197.0,95193.0,0.01050497]
[1768617378061,0.01050442,95198.0,95194.0,0.01050486]
[1768617379439,0.07489875,95196.0,95183.0,0.05427653]
[1768617379642,0.01050541,95189.0,95186.0,0.01050574]
[1768617379847,0.01050552,95188.0,95184.0,0.01050596]
[1768617380053,0.00915382,95188.0,95184.0,0.01050596]
[1768617380226,0.00817675,95188.0,95183.0,0.04972062]
[1768617380403,0.01050541,95189.0,95184.0,0.01050596]
[1768617380568,0.01050541,95189.0,95185.0,0.01050585]
[1768617380781,0.01050486,95194.0,95189.0,0.00097707]
[1768617380977,0.01050442,95198.0,95192.0,0.01050508]
[1768617381178,0.42002917,95232.0,95197.0,0.08220066]
[1768617381179,0.13778409,95201.0,95197.0,0.08220066]
[1768617381378,0.13778409,95201.0,95197.0,0.07169613]
[1768617381379,0.0105042,95200.0,95197.0,0.07169613]
[1768617381581,0.13778409,95201.0,95197.0,0.07169613]
[1768617381817,0.0105042,95200.0,95197.0,0.07169613]
[1768617382424,0.00048602,95208.0,95205.0,0.06644671]
[1768617382635,0.00048602,95208.0,95206.0,0.06644671]
[1768617383909,0.01050376,95204.0,95200.0,0.07695091]
[1768617384345,0.0630233,95203.0,95200.0,0.06644671]
[1768617384546,0.01050387,95203.0,95200.0,0.06644671]
[1768617384754,0.01050387,95203.0,95198.0,0.03150765]
[1768617384755,0.01050409,95201.0,95198.0,0.03150765]
[1768617384956,0.01050409,95201.0,95197.0,0.19372671]
[1768617385164,0.01050409,95201.0,95197.0,0.20423124]
[1768617385365,0.01050409,95201.0,95198.0,0.01050409]
[1768617385573,0.01050398,95202.0,95198.0,0.01050409]
[1768617386037,0.01050409,95201.0,95198.0,0.0769508]
[1768617386410,0.01050431,95199.0,95192.0,0.01050508]
[1768617386619,0.01050431,95199.0,95194.0,0.01050486]
[1768617386839,0.01050442,95198.0,95195.0,0.04201422]
[1768617387155,0.01050376,95204.0,95195.0,0.01050475]
[1768617387353,0.01050409,95201.0,95198.0,0.01050442]
[1768617387514,0.01050409,95201.0,95195.0,0.01050475]
[1768617387715,0.01050464,95196.0,95193.0,0.03150947]
[1768617388100,0.02424308,95195.0,95193.0,0.03150947]
[1768617388992,0.03474783,95195.0,95192.0,4.735e-05]
[1768617389386,0.01050475,95195.0,95192.0,0.03155682]
[1768617389744,0.01050475,95195.0,95192.0,4.735e-05]
[1768617389962,0.01923205,95194.0,95192.0,4.735e-05]
[1768617390121,0.01050475,95195.0,95192.0,4.735e-05]
[1768617390324,0.05252447,95194.0,95192.0,4.735e-05]
[1768617390530,0.05252487,95193.0,95192.0,4.735e-05]
[1768617391868,0.05252432,95194.0,95192.0,4.735e-05]
[1768617392197,0.01050475,95195.0,95192.0,4.735e-05]
[1768617392348,0.05252431,95194.0,95192.0,4.735e-05]
[1768617392554,0.05252487,95193.0,95192.0,4.735e-05]
[1768617393364,0.01050475,95195.0,95192.0,4.735e-05]
[1768617393567,0.06302903,95195.0,95192.0,4.735e-05]
[1768617393966,0.01050475,95195.0,95192.0,4.735e-05]
[1768617394776,0.05252452,95194.0,95192.0,4.735e-05]
[1768617394982,0.01050475,95195.0,95192.0,4.735e-05]
[1768617395150,0.05252487,95193.0,95192.0,4.735e-05]
[1768617395353,0.01050475,95195.0,95192.0,4.735e-05]
[1768617395937,0.06302891,95195.0,95192.0,4.735e-05]
[1768617396138,0.06302871,95195.0,95192.0,4.735e-05]
[1768617396801,0.01050475,95195.0,95192.0,4.735e-05]
[1768617397005,0.05252433,95194.0,95192.0,4.735e-05]
[1768617399379,0.06302954,95195.0,95192.0,4.735e-05]
[1768617400308,0.0210154,95193.0,95192.0,4.735e-05]
[1768617400519,0.05252434,95194.0,95192.0,4.735e-05]
[1768617402347,0.0525247,95194.0,95192.0,4.735e-05]
[1768617403522,0.01050475,95195.0,95192.0,4.735e-05]
[1768617403699,0.05252468,95194.0,95192.0,4.735e-05]
[1768617404287,0.01050475,95195.0,95192.0,4.735e-05]
[1768617404552,0.05252482,95194.0,95192.0,4.735e-05]
[1768617405558,0.01050475,95195.0,95192.0,4.735e-05]
[1768617406065,0.06302871,95195.0,95192.0,4.735e-05]
[1768617406918,0.05252433,95194.0,95192.0,4.735e-05]
[1768617407979,0.06302866,95195.0,95192.0,4.735e-05]
[1768617409485,0.05252487,95193.0,95192.0,4.735e-05]
[1768617410677,0.01050475,95195.0,95192.0,4.735e-05]
[1768617411297,0.06302897,95195.0,95192.0,4.735e-05]
[1768617411498,0.06302857,95195.0,95192.0,4.735e-05]
[1768617412085,0.01050475,95195.0,95192.0,4.735e-05]
[1768617412294,0.06302902,95195.0,95192.0,4.735e-05]
[1768617412952,0.05252447,95194.0,95192.0,4.735e-05]
[1768617413165,0.06302872,95195.0,95192.0,4.735e-05]
[1768617414018,0.01050475,95195.0,95192.0,4.735e-05]
[1768617414972,0.06302873,95195.0,95192.0,4.735e-05]
[1768617415187,0.0525247,95194.0,95192.0,4.735e-05]
[1768617415587,0.05252487,95193.0,95192.0,4.735e-05]
[1768617415786,0.05252433,95194.0,95192.0,4.735e-05]
[1768617416647,0.06302874,95195.0,95192.0,4.735e-05]
[1768617417004,0.01050475,95195.0,95192.0,4.735e-05]
[1768617417209,0.06302894,95195.0,95192.0,4.735e-05]
[1768617417854,0.06302863,95195.0,95192.0,4.735e-05]
[1768617418501,0.01050475,95195.0,95192.0,4.735e-05]
[1768617419630,0.06302896,95195.0,95192.0,4.735e-05]
[1768617419820,0.05252433,95194.0,95192.0,4.735e-05]
[1768617420423,0.01050475,95195.0,95192.0,4.735e-05]
[1768617420597,0.05252487,95193.0,95192.0,4.735e-05]
[1768617421980,0.05252487,95193.0,95192.0,1.88e-06]
[1768617422499,0.11063852,95193.0,95192.0,1.88e-06]
[1768617423995,0.01050563,95187.0,95170.0,0.31780862]
[1768617424207,0.01050574,95186.0,95182.0,0.01050618]
[1768617424362,0.01050574,95186.0,95181.0,0.01050629]
[1768617425547,0.01050585,95185.0,95181.0,0.01050629]
[1768617426032,0.01050563,95187.0,95182.0,0.01050618]
[1768617426199,0.01050574,95186.0,95182.0,0.01050618]
[1768617426583,0.01050563,95187.0,95183.0,0.01050607]
[1768617426989,0.13778552,95188.0,95183.0,0.01050607]
[1768617427232,0.01050563,95187.0,95183.0,0.01050607]
[1768617427445,0.01050563,95187.0,95182.0,0.01050618]
[1768617427860,0.13778552,95188.0,95183.0,0.01050607]
[1768617428214,0.01050563,95187.0,95183.0,0.01050607]
[1768617429508,0.01050574,95186.0,95182.0,0.01050618]
[1768617431157,0.01050574,95186.0,95181.0,0.01050629]
[1768617431158,0.06303453,95186.0,95181.0,0.01050629]
[1768617431478,0.01050574,95186.0,95181.0,0.01050629]
[1768617431656,0.01050563,95187.0,95182.0,0.01050618]
[1768617432472,0.01050563,95187.0,95183.0,0.01050607]
[1768617432676,0.13778552,95188.0,95184.0,0.01050596]
[1768617433090,0.06303395,95187.0,95182.0,0.01050618]
[1768617433697,0.01050563,95187.0,95182.0,0.06303698]
[1768617433863,0.01050563,95187.0,95182.0,0.01050618]
[1768617434060,0.01050585,95185.0,95181.0,0.01050629]
[1768617434285,0.01050563,95187.0,95182.0,0.06303704]
[1768617434492,0.01050574,95186.0,95180.0,0.0105064]
[1768617434694,0.01050585,95185.0,95180.0,0.0105064]
[1768617434928,0.01050596,95184.0,95179.0,0.01050651]
[1768617435137,0.01050629,95181.0,95177.0,0.01050674]
[1768617435352,0.01050651,95179.0,95175.0,0.07196347]
[1768617435564,0.01050618,95182.0,95179.0,0.00185665]
[1768617436598,0.06303714,95182.0,95179.0,0.00185665]
[1768617436936,0.01050607,95183.0,95179.0,0.00185665]
[1768617437149,0.01050596,95184.0,95179.0,0.01236316]
[1768617437367,0.01050607,95183.0,95179.0,0.01236316]
[1768617437572,0.06303715,95182.0,95179.0,0.00185665]
[1768617437775,0.01050618,95182.0,95179.0,0.00185665]
[1768617439370,0.06303723,95182.0,95179.0,0.00185665]
[1768617440240,0.01050607,95183.0,94798.0,0.52727489]
[1768617440241,0.01050563,95187.0,94798.0,0.52727489]
[1768617440242,0.04949824,95181.0,95149.0,0.00038006]
[1768617440445,0.04949824,95181.0,95153.0,0.01050939]
[1768617440446,0.06305,95180.0,95153.0,0.01050939]
[1768617440647,0.12728,95179.0,95161.0,0.07196347]
[1768617440825,0.12728,95179.0,95149.0,0.21024308]
[1768617440826,0.01050651,95179.0,95171.0,0.07196347]
[1768617441030,0.04220566,95181.0,95177.0,0.01050674]
[1768617441031,0.0001685,95181.0,95177.0,0.01050674]
[1768617441299,0.0001629,95186.0,95182.0,0.07196347]
[1768617441485,0.0001629,95186.0,95183.0,0.01050607]
[1768617442443,0.0001629,95186.0,95183.0,4.734e-05]
[1768617442763,0.01066864,95186.0,95183.0,4.734e-05]
[1768617446612,0.01027547,95186.0,95183.0,4.734e-05]
[1768617447237,0.01050629,95181.0,95171.0,0.0105074]
[1768617447451,0.0105064,95180.0,95176.0,0.01050685]
[1768617447885,0.01050651,95179.0,95176.0,0.01050685]
[1768617448002,0.01050651,95179.0,95175.0,0.01050696]
[1768617448208,0.0105064,95180.0,95176.0,0.01050685]
[1768617448538,0.01050662,95178.0,95174.0,0.01057171]
[1768617449150,0.06303856,95180.0,95175.0,0.01050696]
[1768617449355,0.0105064,95180.0,95176.0,0.01050685]
[1768617450566,0.01050651,95179.0,95175.0,0.01050696]
[1768617451059,0.0105064,95180.0,95176.0,0.01050685]
[1768617451449,0.0105064,95180.0,95175.0,0.01050696]
[1768617451647,0.01050662,95178.0,95174.0,0.01057171]
[1768617452819,0.01050674,95177.0,95174.0,0.01057171]
[1768617454521,0.01050662,95178.0,95174.0,0.01057171]
[1768617454742,0.0105064,95180.0,95175.0,0.06304176]
[1768617455297,0.0105064,95180.0,95175.0,0.01050696]
[1768617455521,0.0105064,95180.0,95177.0,0.01050674]
[1768617455722,0.13743307,95181.0,95177.0,0.01050674]
[1768617455904,0.12732,95181.0,95177.0,0.01050674]
[1768617456104,0.13782629,95181.0,95177.0,0.01050674]
[1768617456306,0.12732,95181.0,95178.0,0.01050662]
[1768617457152,0.12732,95181.0,95176.0,0.05253403]
[1768617457357,0.13782629,95181.0,95175.0,0.05253464]
[1768617457641,0.0105064,95180.0,95176.0,0.01050685]
[1768617457837,0.01050651,95179.0,95174.0,0.01050707]
[1768617457993,0.0105064,95180.0,95175.0,0.01050696]
[1768617458357,0.12746202,95181.0,95176.0,0.01050685]
[1768617458601,0.13796831,95181.0,95176.0,0.01050685]
[1768617458803,0.13796831,95181.0,95177.0,0.01050674]
[1768617459515,0.12746202,95181.0,95177.0,0.01050674]
[1768617460153,0.13796831,95181.0,95177.0,0.01050674]
[1768617460328,0.12746202,95181.0,95177.0,0.01050674]
[1768617461081,0.13796831,95181.0,95177.0,0.01050674]
[1768617461283,0.12746202,95181.0,95177.0,0.01050674]
[1768617461474,0.13796831,95181.0,95177.0,0.01050674]
[1768617461933,0.13796831,95181.0,95176.0,0.01050685]
[1768617462223,0.0105064,95180.0,95176.0,0.01050685]
[1768617462561,0.19049983,95181.0,95176.0,0.01050685]
[1768617462562,0.13796831,95181.0,95176.0,0.01050685]
[1768617463129,0.0105064,95180.0,95176.0,0.01050685]
[1768617463554,0.01050651,95179.0,95174.0,0.01050707]
[1768617463907,0.01050651,95179.0,95175.0,0.01050696]
[1768617464131,0.01050651,95179.0,95174.0,0.01050707]
[1768617465006,0.0105064,95180.0,95175.0,0.01050696]
[1768617465234,0.0105064,95180.0,95170.0,0.31780862]
[1768617465439,0.01050651,95179.0,95174.0,0.01050707]
[1768617465643,0.01050651,95179.0,95173.0,0.01050718]
[1768617465844,0.01050662,95178.0,95173.0,0.01050718]
[1768617466048,0.01050651,95179.0,95173.0,0.01050718]
[1768617466469,0.01050662,95178.0,95173.0,0.01050718]
[1768617466885,0.01011322,95178.0,95173.0,0.01050718]
[1768617467097,0.01050674,95177.0,95172.0,0.01050729]
[1768617467315,0.0105064,95180.0,95175.0,0.01050696]
[1768617469052,0.13796831,95181.0,95175.0,0.01050696]
[1768617469471,0.0105064,95180.0,95172.0,0.01050729]
[1768617469816,0.12746202,95181.0,95175.0,0.01050696]
[1768617470026,0.13796831,95181.0,95176.0,0.01050685]
[1768617470235,0.13796831,95181.0,95175.0,0.01050696]
[1768617470236,0.01050651,95179.0,95175.0,0.01050696]
[1768617470378,0.0105064,95180.0,95175.0,0.01050696]
[1768617472244,0.13796831,95181.0,95176.0,0.01050685]
[1768617472475,0.0105064,95180.0,95176.0,0.01050685]
[1768617472674,0.0105064,95180.0,95175.0,0.01050696]
[1768617472898,0.13796831,95181.0,95176.0,0.01050685]
[1768617473734,0.0105064,95180.0,95175.0,0.01050696]
[1768617474004,0.13796831,95181.0,95176.0,0.01050685]
[1768617474279,0.0105064,95180.0,95175.0,0.01050696]
[1768617474624,0.01050651,95179.0,95175.0,0.01050696]
[1768617475266,0.0105064,95180.0,95174.0,0.01050707]
[1768617475452,0.01050651,95179.0,95175.0,0.01050696]
[1768617476126,0.0105064,95180.0,95175.0,0.01050696]
[1768617476758,0.12746202,95181.0,95178.0,0.01050662]
[1768617477083,0.12732,95181.0,95180.0,0.0105064]
[1768617477282,0.12732,95181.0,95178.0,0.06303957]
[1768617477530,0.12722905,95181.0,95178.0,0.06303957]
[1768617477949,0.12722905,95181.0,95178.0,0.01050662]
[1768617479591,0.06303315,95188.0,95178.0,0.01050662]
[1768617479592,1e-08,95198.0,95193.0,0.01050497]
[1768617479800,0.12732,95204.0,95201.0,0.01050409]
[1768617480002,0.01050265,95214.0,95197.0,0.01557803]
[1768617480003,0.10231284,95218.0,95215.0,0.005478]
[1768617480217,0.12732,95217.0,95215.0,0.005478]
[1768617480847,0.22963284,95217.0,95215.0,0.005478]
[1768617481050,0.05251218,95216.0,95215.0,0.005478]
[1768617481253,0.01050287,95212.0,95207.0,0.00022433]
[1768617481400,0.01050298,95211.0,95207.0,0.00022433]
[1768617481929,0.01050309,95210.0,95207.0,0.00022433]
[1768617484710,0.01050188,95221.0,95209.0,0.0105032]
[1768617484915,0.12728,95217.0,95212.0,0.01050287]
[1768617485115,0.12728,95217.0,95213.0,0.01050276]
[1768617485296,0.13778232,95217.0,95212.0,0.01050287]
[1768617485489,0.13778232,95217.0,95211.0,0.01050298]
[1768617485899,0.01050243,95216.0,95207.0,0.01072775]
[1768617486100,0.01050254,95215.0,95209.0,0.0105032]
[1768617486302,0.01050243,95216.0,95210.0,0.01050309]
[1768617486501,0.01050254,95215.0,95210.0,0.01050309]
[1768617487266,0.01050265,95214.0,95192.0,0.12728]
[1768617487476,0.01050265,95214.0,95208.0,0.01050331]
[1768617487675,0.01050276,95213.0,95207.0,0.01050342]
[1768617487904,0.01050265,95214.0,95207.0,0.01050342]
[1768617488088,0.01050254,95215.0,95208.0,0.01050331]
[1768617488294,0.01050265,95214.0,95208.0,0.01050331]
[1768617488503,0.01050254,95215.0,95209.0,0.0105032]
[1768617488660,0.01050254,95215.0,95208.0,0.01050331]
[1768617489039,0.01050254,95215.0,95209.0,0.0105032]
[1768617489881,0.01050254,95215.0,95208.0,0.01050331]
[1768617490083,0.01050287,95212.0,95202.0,0.01050398]
[1768617490311,0.01050265,95214.0,95207.0,0.01050342]
[1768617490511,0.01050287,95212.0,95206.0,0.01050353]
[1768617491293,0.01050298,95211.0,95206.0,0.01050353]
[1768617491518,0.01050287,95212.0,95206.0,0.01050353]
[1768617492142,0.01050287,95212.0,95205.0,0.01050365]
[1768617492352,0.01050298,95211.0,95205.0,0.01050365]
[1768617492586,0.01050287,95212.0,95206.0,0.01050353]
[1768617493223,0.01050276,95213.0,95206.0,0.01050353]
[1768617493450,0.13778287,95212.0,95206.0,0.01050353]
[1768617493860,0.13778287,95212.0,95207.0,0.01050342]
[1768617494023,0.12728,95212.0,95207.0,0.01050342]
[1768617494230,0.12180047,95212.0,95208.0,0.01050331]
[1768617494645,0.12180047,95212.0,95207.0,0.01050342]